fUSD/lending_fUSD_20260501
["ID","MTS","AMOUNT","RATE_DAILY","PERIOD"]
[421406527,1777571443000,-46.05198248,0.000119,2]
[421406523,1777571443000,-3582.59608821,0.000119,2]
[421406519,1777571443000,-313.025464,0.000119,2]
[421406522,1777571443000,-313.025464,0.000119,2]
[421406520,1777571443000,-313.025464,0.000119,2]
[421406515,1777571443000,-150.0,0.00011853,2]
[421406511,1777571443000,-2000.0,0.000118,2]
[421406509,1777571443000,-150.0,0.0001178,2]
[421406508,1777571443000,-150.0,0.0001176,2]
[421406514,1777571443000,-150.0,0.00011829,2]
[421406518,1777571443000,-163.23977505,0.000119,2]
[421406532,1777571445000,-1371.35192931,0.000119,2]
[421406537,1777571445000,-151.0,0.000119,2]
[421406534,1777571445000,-151.0,0.000119,2]
[421406533,1777571445000,-319.64373936,0.000119,2]
[421406531,1777571445000,-2073.50790273,0.0001176,2]
[421406536,1777571445000,-151.0,0.000119,2]
[421406539,1777571445000,-240.913626,0.000119,2]
[421406540,1777571445000,-240.913626,0.000119,2]
[421406538,1777571445000,-35863.66811979,0.000119,2]
[421406535,1777571445000,-151.0,0.000119,2]
[421406562,1777571446000,-500.0,0.00011973,2]
[421406552,1777571446000,-227.347143,0.000119,2]
[421406563,1777571446000,-500.0,0.00011973,2]
[421406559,1777571446000,-501.49599921,0.00011973,2]
[421406555,1777571446000,-150.0,0.00011927,2]
[421406556,1777571446000,-250.0,0.00011929,2]
[421406551,1777571446000,-151.0,0.000119,2]
[421406554,1777571446000,-150.0,0.00011902,2]
[421406553,1777571446000,-151.0,0.000119,2]
[421406546,1777571446000,-344.090678,0.000119,2]
[421406547,1777571446000,-344.090678,0.000119,2]
[421406541,1777571446000,-240.913626,0.000119,2]
[421406550,1777571446000,-227.347143,0.000119,2]
[421406543,1777571446000,-344.090678,0.000119,2]
[421406544,1777571446000,-192.7365087,0.000119,2]
[421406545,1777571446000,-344.090678,0.000119,2]
[421406542,1777571446000,-240.913626,0.000119,2]
[421406564,1777571446000,-500.0,0.00011973,2]
[421406548,1777571446000,-227.347143,0.000119,2]
[421406560,1777571446000,-500.0,0.00011973,2]
[421406549,1777571446000,-227.347143,0.000119,2]
[421406557,1777571446000,-150.0,0.00011951,2]
[421406582,1777571446000,-62101.9958109,0.00012,2]
[421406581,1777571446000,-250.0,0.00012,2]
[421406580,1777571446000,-968.0,0.00012,5]
[421406578,1777571446000,-1027.0,0.00012,5]
[421406579,1777571446000,-1003.0,0.00012,5]
[421406585,1777571446000,-713.165178,0.00012,2]
[421406577,1777571446000,-1027.43622372,0.00011999,3]
[421406575,1777571446000,-1027.43622372,0.00011999,3]
[421406576,1777571446000,-1027.43622372,0.00011999,3]
[421406561,1777571446000,-500.0,0.00011973,2]
[421406574,1777571446000,-194.93476651,0.00011999,3]
[421406566,1777571446000,-406.11739145,0.00011973,2]
[421406571,1777571446000,-666.0,0.00011999,2]
[421406568,1777571446000,-150.0,0.00011976,2]
[421406567,1777571446000,-500.0,0.00011973,2]
[421406572,1777571446000,-300.0,0.00011999,2]
[421406565,1777571446000,-500.0,0.00011973,2]
[421406570,1777571446000,-151.0,0.00011997,2]
[421406573,1777571446000,-300.0,0.00011999,2]
[421406569,1777571446000,-200.44978077,0.0001199,2]
[421406593,1777572574000,-194.00072509,0.00010789,2]
[421406594,1777572574000,-300.0,0.00010799,2]
[421406590,1777572574000,-384.11564651,0.00010199,2]
[421406592,1777572574000,-175.41,0.00010614,2]
[421406591,1777572574000,-2040.0882,0.000102,2]
[421406595,1777572601000,1200.0,0.00010799,2]
[421406629,1777572631000,-150.0,0.00011172,2]
[421406625,1777572631000,-150.0,0.000111,2]
[421406619,1777572631000,-150.0,0.00010966,2]
[421406624,1777572631000,-150.0,0.000111,2]
[421406621,1777572631000,-2951.8839,0.00011033,2]
[421406630,1777572631000,-150.0,0.00011214,2]
[421406628,1777572631000,-166.66,0.00011142,2]
[421406623,1777572631000,-150.0,0.0001109,2]
[421406631,1777572631000,-150.0,0.00011218,2]
[421406626,1777572631000,-150.0,0.000111,2]
[421406622,1777572631000,-150.0,0.00011048,2]
[421406620,1777572631000,-150.0,0.00011007,2]
[421406610,1777572631000,-150.0,0.000108,2]
[421406613,1777572631000,-150.0,0.000108,2]
[421406611,1777572631000,-150.0,0.000108,2]
[421406614,1777572631000,-150.0,0.00010841,2]
[421406617,1777572631000,-150.0,0.00010924,2]
[421406618,1777572631000,-166.66,0.00010959,2]
[421406627,1777572631000,-150.0,0.00011131,2]
[421406609,1777572631000,-150.0,0.000108,2]
[421406608,1777572631000,-150.0,0.000108,2]
[421406615,1777572631000,-150.0,0.00010883,2]
[421406607,1777572631000,-150.0,0.000108,2]
[421406605,1777572631000,-150.0,0.000108,2]
[421406612,1777572631000,-150.0,0.000108,2]
[421406634,1777572631000,-2500.0,0.00011219,2]
[421406616,1777572631000,-300.0,0.00010923,2]
[421406639,1777572631000,-150.0,0.00011255,2]
[421406637,1777572631000,-250.0,0.00011219,2]
[421406659,1777572631000,-150.563,0.00011587,2]
[421406654,1777572631000,-150.0,0.00011545,2]
[421406655,1777572631000,-150.0,0.00011586,2]
[421406649,1777572631000,-150.0,0.00011462,2]
[421406652,1777572631000,-150.0,0.00011503,2]
[421406648,1777572631000,-150.0,0.00011421,2]
[421406646,1777572631000,-150.0,0.000114,2]
[421406650,1777572631000,-1663.0,0.00011467,2]
[421406656,1777572631000,-151.0,0.00011587,2]
[421406651,1777572631000,-6037.0,0.00011467,2]
[421406658,1777572631000,-173.308,0.00011587,2]
[421406653,1777572631000,-166.66,0.00011507,2]
[421406647,1777572631000,-150.0,0.000114,2]
[421406657,1777572631000,-200.0,0.00011587,2]
[421406636,1777572631000,-2500.0,0.00011219,2]
[421406640,1777572631000,-150.0,0.00011297,2]
[421406632,1777572631000,-2500.0,0.00011219,2]
[421406638,1777572631000,-150.0,0.00011233,2]
[421406635,1777572631000,-2500.0,0.00011219,2]
[421406642,1777572631000,-150.0,0.00011338,2]
[421406633,1777572631000,-2500.0,0.00011219,2]
[421406643,1777572631000,-150.0,0.00011379,2]
[421406644,1777572631000,-150.0,0.000114,2]
[421406645,1777572631000,-150.0,0.000114,2]
[421406641,1777572631000,-166.66,0.00011324,2]
[421406667,1777572632000,-150.0,0.00011628,2]
[421406681,1777572632000,-2271.989,0.00011877,2]
[421406673,1777572632000,-150.0,0.00011752,2]
[421406674,1777572632000,-1588.68238848,0.0001176,2]
[421406672,1777572632000,-150.0,0.0001171,2]
[421406666,1777572632000,-1220.0,0.00011587,2]
[421406669,1777572632000,-150.0,0.000117,2]
[421406661,1777572632000,-639.374,0.00011587,2]
[421406668,1777572632000,-150.0,0.00011669,2]
[421406663,1777572632000,-3533.0,0.00011587,2]
[421406662,1777572632000,-1350.0,0.00011587,2]
[421406664,1777572632000,-1049.0,0.00011587,2]
[421406670,1777572632000,-150.0,0.000117,2]
[421406671,1777572632000,-150.0,0.000117,2]
[421406660,1777572632000,-256.929,0.00011587,2]
[421406683,1777572632000,-1239.614,0.00011899,2]
[421406665,1777572632000,-1267.0,0.00011587,2]
[421406680,1777572632000,-150.0,0.00011876,2]
[421406675,1777572632000,-172.067,0.0001176,2]
[421406678,1777572632000,-292.20976545,0.00011829,2]
[421406697,1777572632000,-306.20163352,0.000119,2]
[421406696,1777572632000,-200.07436648,0.000119,2]
[421406695,1777572632000,-1053.71656762,0.000119,2]
[421406694,1777572632000,-532.84664765,0.000119,2]
[421406693,1777572632000,-3783.91779873,0.000119,2]
[421406692,1777572632000,-272.12960695,0.000119,2]
[421406690,1777572632000,-1091.06176575,0.000119,2]
[421406676,1777572632000,-150.0,0.00011793,2]
[421406691,1777572632000,-7449.0,0.000119,2]
[421406689,1777572632000,-19681.19213639,0.000119,2]
[421406686,1777572632000,-1354.31160727,0.000119,2]
[421406688,1777572632000,-213.09582624,0.000119,2]
[421406684,1777572632000,-163.23977504,0.000119,2]
[421406685,1777572632000,-5000.0,0.000119,2]
[421406682,1777572632000,-1680.0,0.00011879,2]
[421406677,1777572632000,-17970.2306,0.000118,2]
[421406679,1777572632000,-150.0,0.00011834,2]
[421406687,1777572632000,-27897.08499995,0.000119,2]
[421406705,1777572637000,-516.42,0.0001176,2]
[421406706,1777572637000,-500.0,0.0001176,2]
[421406707,1777572637000,-42.70159232,0.0001176,2]
[421406709,1777572637000,-319.56578962,0.000119,2]
[421406708,1777572637000,-337.82772933,0.000119,2]
[421406917,1777572639000,-150.0,0.00011917,2]
[421406918,1777572639000,-14.4736723,0.00011945,2]
[421406921,1777572639000,-197.4736723,0.00011985,2]
[421406920,1777572639000,-150.0,0.00011959,2]
[421406919,1777572639000,-185.5263277,0.00011945,2]
[421406915,1777572639000,-412.42942521,0.000119,2]
[421406916,1777572639000,-200.0,0.00011904,2]
[421406929,1777572640000,-179.1728331,0.00011999,2]
[421406927,1777572640000,-300.0,0.00011999,2]
[421406924,1777572640000,-2704.243713,0.00011985,2]
[421406923,1777572640000,-905.8532311,0.00011985,2]
[421406926,1777572640000,-151.0,0.00011997,2]
[421406922,1777572640000,-8258.0727581,0.00011985,2]
[421406925,1777572640000,-200.44978078,0.0001199,2]
[421406931,1777572640000,-502.20984984,0.00011999,2]
[421406928,1777572640000,-669.67353921,0.00011999,2]
[421406930,1777572640000,-500.0,0.00011999,2]
[421406933,1777572640000,-609.04943278,0.00011999,2]
[421406939,1777572640000,-777.78874986,0.00012,2]
[421406934,1777572640000,-766.0,0.00012,5]
[421406935,1777572640000,-616.0,0.00012,5]
[421406936,1777572640000,-250.0,0.00012,2]
[421406932,1777572640000,-559.48234216,0.00011999,2]
[421406938,1777572640000,-315.98937834,0.00012,2]
[421406937,1777572640000,-345887.88354674,0.00012,2]
[421406953,1777572642000,-886.98159232,0.0001176,2]
[421406954,1777572642000,-367135.4416184,0.00012,2]
[421406959,1777572645000,-1755.0,0.00012,2]
[421406960,1777572645000,-3300.31585,0.00012,2]
[421406957,1777572645000,-416.0,0.00011577,2]
[421406958,1777572645000,-4087.69796652,0.00012,2]
[421406961,1777572646000,-6148.77728465,0.00012,2]
[421407018,1777573503000,1015.9,0.00030137,120]
[421407021,1777573605000,-138.44951876,0.000108,2]
[421407020,1777573605000,-170.99842479,0.000108,2]
[421407019,1777573605000,-300.0,0.00010799,2]
[421407023,1777573744000,3285.34,0.000301,120]
[421407024,1777573801000,478.3032786,0.00010799,2]
[421407038,1777573832000,-300.0,0.00011018,2]
[421407043,1777573832000,-1575.782339,0.000114,2]
[421407040,1777573832000,-189.54,0.0001108,2]
[421407042,1777573832000,-604.812721,0.000114,2]
[421407041,1777573832000,-150.0,0.00011399,2]
[421407035,1777573832000,-5000.0,0.00010979,2]
[421407047,1777573832000,-1267.0,0.00011587,2]
[421407057,1777573832000,-6786.8315,0.000119,2]
[421407048,1777573832000,-1220.0,0.00011587,2]
[421407049,1777573832000,-1350.0,0.00011716,2]
[421407052,1777573832000,-1680.0,0.00011879,2]
[421407046,1777573832000,-209.28798728,0.00011487,2]
[421407039,1777573832000,-5296.1681,0.00011019,2]
[421407029,1777573832000,-229.09574755,0.000108,2]
[421407044,1777573832000,-26330.81688552,0.000114,2]
[421407045,1777573832000,-150.0,0.000114,2]
[421407030,1777573832000,-176.58888064,0.000108,2]
[421407032,1777573832000,-271.31136749,0.000108,2]
[421407031,1777573832000,-154.37245581,0.000108,2]
[421407056,1777573832000,-5000.0,0.0001188,2]
[421407028,1777573832000,-202.66399536,0.000108,2]
[421407027,1777573832000,-90.11711695,0.000108,2]
[421407034,1777573832000,-5000.0,0.00010979,2]
[421407033,1777573832000,-150.0,0.000108,2]
[421407025,1777573832000,-721.6967214,0.00010799,2]
[421407026,1777573832000,-31.37420682,0.000108,2]
[421407036,1777573832000,-630.87387984,0.00010979,2]
[421407054,1777573832000,-1000.0,0.0001188,2]
[421407037,1777573832000,-209.28798728,0.0001098,2]
[421407055,1777573832000,-185.15504307,0.0001188,2]
[421407053,1777573832000,-1000.0,0.0001188,2]
[421407102,1777573832000,-1695.15643798,0.00012,2]
[421407105,1777573832000,-1609.30073,0.00012,2]
[421407099,1777573832000,-395564.18977203,0.00012,2]
[421407095,1777573832000,-398.0,0.00012,5]
[421407092,1777573832000,-492.0,0.00012,5]
[421407082,1777573832000,-300.0,0.00011999,2]
[421407086,1777573832000,-263.34344779,0.00011999,2]
[421407097,1777573832000,-250.0,0.00012,2]
[421407080,1777573832000,-151.0,0.00011997,2]
[421407077,1777573832000,-2307.6642973,0.00011993,2]
[421407090,1777573832000,-201.49042637,0.00011999,2]
[421407088,1777573832000,-500.0,0.00011999,2]
[421407073,1777573832000,-151.0,0.00011993,2]
[421407084,1777573832000,-500.0,0.00011999,2]
[421407071,1777573832000,-200.0,0.00011993,2]
[421407064,1777573832000,-200.0,0.00011904,2]
[421407067,1777573832000,-150.0,0.00011988,2]
[421407063,1777573832000,-337.82772933,0.000119,2]
[421407075,1777573832000,-1755.0386716,0.00011993,2]
[421407050,1777573832000,-410.42053078,0.0001176,2]
[421407066,1777573832000,-200.0,0.00011945,2]
[421407061,1777573832000,-2351.2067,0.000119,2]
[421407060,1777573832000,-26580.35096668,0.000119,2]
[421407069,1777573832000,-927.18,0.00011991,2]
[421407059,1777573832000,-2000.0,0.000119,2]
[421407058,1777573832000,-163.23977504,0.000119,2]
[421407051,1777573832000,-1817.591,0.00011853,2]
[421407062,1777573832000,-36896.83053707,0.000119,2]
[421407107,1777573833000,-265.84703492,0.00012,2]
[421407187,1777573838000,-380.52932165,0.00012,2]
[421407186,1777573838000,-6859.99277437,0.00012,2]
[421407185,1777573838000,-1073.49933869,0.00012,2]
[421407184,1777573838000,-287.84755129,0.0001176,2]
[421407188,1777573838000,-128687.44681212,0.00012,2]
[421407189,1777573840000,-501703.54237343,0.00012,2]
[421407191,1777573840000,-552679.29723162,0.00012,2]
[421407190,1777573840000,-141956.93928137,0.00012,2]
[421407192,1777573840000,-151.0,0.00012,2]
[421407194,1777573840000,-151.0,0.00012,2]
[421407196,1777573840000,-1000.0,0.00012,2]
[421407195,1777573840000,-1000.0,0.00012,2]
[421407197,1777573840000,-1000.0,0.00012,2]
[421407200,1777573840000,-517336.1646231,0.00012,2]
[421407203,1777573840000,-252.9257169,0.00012,2]
[421407204,1777573840000,-580.29201335,0.00012,2]
[421407202,1777573840000,-380.24418438,0.00012,2]
[421407193,1777573840000,-193.52502828,0.00012,2]
[421407198,1777573840000,-1000.0,0.00012,2]
[421407199,1777573840000,-45776.5909,0.00012,2]
[421407201,1777573840000,-991185.39387005,0.00012,2]
[421407226,1777573843000,-4047.0,0.00011716,2]
[421407242,1777573846000,-725.3672,0.00012,2]
[421407237,1777573846000,-11682.32442121,0.00012,2]
[421407239,1777573846000,-1538.77951083,0.00012,2]
[421407238,1777573846000,-773.14155089,0.00012,2]
[421407235,1777573846000,-206.13223163,0.0001176,2]
[421407236,1777573846000,-647.23002113,0.00012,2]
[421407234,1777573846000,-1990.0,0.00011716,2]
[421407241,1777573846000,-10913.86,0.00012,2]
[421407249,1777574798000,-178.57784285,0.00010699,2]
[421407251,1777574972000,-4420.067626,0.000106,2]
[421407250,1777574972000,-510.1396,0.000106,2]
[421407260,1777575031000,-14238.11822597,0.000107,2]
[421407259,1777575031000,-29054.26555833,0.000107,2]
[421407258,1777575031000,-150.0,0.00010699,2]
[421407257,1777575031000,-13042.37584643,0.000106,2]
[421407255,1777575031000,-55655.490174,0.000106,2]
[421407256,1777575031000,-902.43725357,0.000106,2]
[421407254,1777575031000,-1200.0,0.00010599,2]
[421407253,1777575031000,-312.02,0.00010021,2]
[421407262,1777575032000,-8190.57590059,0.00011092,2]
[421407261,1777575032000,-48285.39751737,0.000107,2]
[421407348,1777575038000,-2697.7534089,0.00011092,2]
[421407347,1777575038000,-380.52932165,0.00011092,2]
[421407381,1777575040000,-363.68565644,0.00011099,2]
[421407380,1777575040000,-1774.29657016,0.00011092,2]
[421407379,1777575040000,-1971.275,0.00011092,2]
[421407402,1777575046000,-19743.82672229,0.00011099,2]
[421407401,1777575046000,-1041.20961511,0.00011099,2]
[421407407,1777575104000,-900.00389248,0.000105,2]
[421407406,1777575104000,434.0,0.0003013,120]
[421407408,1777575107000,488.0,0.0003013,120]
[421407409,1777575163000,674.0,0.0003013,120]
[421407410,1777575206000,3548.17,0.00030137,120]
[421407411,1777575401000,3548.17,0.00030137,120]
[421407412,1777575411000,3548.17,0.00030137,120]
[421407414,1777575420000,3548.17,0.00030137,120]
[421407415,1777575428000,3548.17,0.00030137,120]
[421407416,1777575517000,3285.34,0.00030137,120]
[421407417,1777575529000,3285.34,0.00030136,120]
[421407418,1777575533000,500.0,0.00029532,120]
[421407419,1777575573000,3285.34,0.00030137,120]
[421407420,1777575583000,3285.34,0.00030137,120]
[421407421,1777575637000,3285.34,0.00030137,120]
[421407422,1777575649000,2956.81,0.00030137,120]
[421407423,1777575686000,2956.81,0.00030137,120]
[421407424,1777576016000,-257.88354362,9.655e-05,2]
[421407425,1777576123000,500.0,0.00027799,120]
[421407426,1777576148000,1001.1,0.00030137,120]
[421407465,1777576232000,-151.0,0.00010494,2]
[421407457,1777576232000,-151.0,0.00010494,2]
[421407459,1777576232000,-151.0,0.00010494,2]
[421407460,1777576232000,-151.0,0.00010494,2]
[421407469,1777576232000,-151.0,0.00010494,2]
[421407471,1777576232000,-151.0,0.00010494,2]
[421407470,1777576232000,-151.0,0.00010494,2]
[421407461,1777576232000,-151.0,0.00010494,2]
[421407462,1777576232000,-98.59335665,0.00010494,2]
[421407466,1777576232000,-151.0,0.00010494,2]
[421407486,1777576232000,-500.0,0.00010499,2]
[421407467,1777576232000,-151.0,0.00010494,2]
[421407468,1777576232000,-151.0,0.00010494,2]
[421407464,1777576232000,-151.0,0.00010494,2]
[421407472,1777576232000,-151.0,0.00010494,2]
[421407473,1777576232000,-271.94652768,0.00010494,2]
[421407475,1777576232000,-500.0,0.00010499,2]
[421407474,1777576232000,-500.0,0.00010499,2]
[421407477,1777576232000,-71.38627595,0.00010499,2]
[421407476,1777576232000,-500.0,0.00010499,2]
[421407455,1777576232000,-151.0,0.00010494,2]
[421407463,1777576232000,-52.40664335,0.00010494,2]
[421407454,1777576232000,-151.0,0.00010494,2]
[421407445,1777576232000,-209.0,0.00010397,2]
[421407450,1777576232000,-380.5293,0.000104,2]
[421407433,1777576232000,-274.0,9.655e-05,2]
[421407432,1777576232000,-250.0,9.51e-05,2]
[421407431,1777576232000,-150.0,9.365e-05,2]
[421407435,1777576232000,-500.0,9.954e-05,2]
[421407436,1777576232000,-300.0,9.954e-05,2]
[421407437,1777576232000,-187.47382037,0.0001,2]
[421407444,1777576232000,-2005.2,0.00010307,2]
[421407440,1777576232000,-300.0,0.00010123,2]
[421407439,1777576232000,-334.11969129,0.0001,2]
[421407438,1777576232000,-482.13369495,0.0001,2]
[421407451,1777576232000,-150.0,0.00010428,2]
[421407443,1777576232000,-1200.0,0.00010306,2]
[421407441,1777576232000,-250.0,0.00010302,2]
[421407478,1777576232000,-428.61372405,0.00010499,2]
[421407446,1777576232000,-300.0,0.00010398,2]
[421407448,1777576232000,-109526.4365,0.000104,2]
[421407447,1777576232000,-150.0,0.00010399,2]
[421407452,1777576232000,-191.02,0.00010466,2]
[421407453,1777576232000,-151.0,0.00010494,2]
[421407458,1777576232000,-151.0,0.00010494,2]
[421407456,1777576232000,-151.0,0.00010494,2]
[421407449,1777576232000,-2500.0,0.000104,2]
[421407434,1777576232000,-250.0,9.706e-05,2]
[421407479,1777576232000,-500.0,0.00010499,2]
[421407507,1777576232000,-500.0,0.00010499,2]
[421407481,1777576232000,-500.0,0.00010499,2]
[421407483,1777576232000,-500.0,0.00010499,2]
[421407531,1777576232000,-300.0,0.00010949,2]
[421407530,1777576232000,-500.0,0.00010932,2]
[421407533,1777576232000,-380.52932165,0.00011092,2]
[421407532,1777576232000,-2005.2,0.0001108,2]
[421407542,1777576232000,-469.57,0.00011205,2]
[421407537,1777576232000,-469.57,0.00011162,2]
[421407539,1777576232000,-469.57,0.00011173,2]
[421407534,1777576232000,-32704.12084026,0.00011099,2]
[421407538,1777576232000,-469.57,0.00011172,2]
[421407526,1777576232000,-150.0,0.000108,2]
[421407536,1777576232000,-469.57,0.00011161,2]
[421407541,1777576232000,-469.57,0.00011194,2]
[421407540,1777576232000,-469.57,0.00011183,2]
[421407543,1777576232000,-469.57,0.00011251,2]
[421407544,1777576232000,-469.58612801,0.00011261,2]
[421407545,1777576232000,-1680.0,0.00011337,2]
[421407546,1777576232000,-2005.2,0.00011338,2]
[421407547,1777576232000,-172.05819722,0.00011373,2]
[421407548,1777576232000,-531.41078814,0.00011373,2]
[421407549,1777576232000,-577.42616976,0.00011373,2]
[421407550,1777576232000,-500.88431319,0.00011373,2]
[421407535,1777576232000,-23922.31586994,0.00011099,2]
[421407527,1777576232000,-2005.2,0.00010822,2]
[421407521,1777576232000,-150.0,0.000108,2]
[421407519,1777576232000,-150.0,0.000108,2]
[421407484,1777576232000,-500.0,0.00010499,2]
[421407487,1777576232000,-500.0,0.00010499,2]
[421407489,1777576232000,-500.0,0.00010499,2]
[421407503,1777576232000,-500.0,0.00010499,2]
[421407506,1777576232000,-418.42049042,0.00010499,2]
[421407505,1777576232000,-500.0,0.00010499,2]
[421407491,1777576232000,-500.0,0.00010499,2]
[421407525,1777576232000,-150.0,0.000108,2]
[421407495,1777576232000,-500.0,0.00010499,2]
[421407501,1777576232000,-500.0,0.00010499,2]
[421407493,1777576232000,-500.0,0.00010499,2]
[421407499,1777576232000,-500.0,0.00010499,2]
[421407529,1777576232000,-2283.91528443,0.000109,2]
[421407517,1777576232000,-150.0,0.000108,2]
[421407497,1777576232000,-500.0,0.00010499,2]
[421407513,1777576232000,-150.0,0.000108,2]
[421407515,1777576232000,-150.0,0.000108,2]
[421407511,1777576232000,-594.0746945,0.00010773,2]
[421407512,1777576232000,-150.0,0.000108,2]
[421407508,1777576232000,-2005.2,0.00010565,2]
[421407509,1777576232000,-359.7863,0.00010599,2]
[421407523,1777576232000,-150.0,0.000108,2]
[421407556,1777576233000,-500.0,0.00011373,2]
[421407552,1777576233000,-210.19796352,0.00011373,2]
[421407554,1777576233000,-500.0,0.00011373,2]
[421407553,1777576233000,-500.0,0.00011373,2]
[421407555,1777576233000,-500.0,0.00011373,2]
[421407557,1777576233000,-500.0,0.00011373,2]
[421407559,1777576233000,-351.50145438,0.00011373,2]
[421407551,1777576233000,-265.56900506,0.00011373,2]
[421407560,1777576233000,-500.0,0.00011373,2]
[421407565,1777576233000,-500.0,0.000114,2]
[421407564,1777576233000,-3732.37805716,0.000114,2]
[421407566,1777576233000,-2020.2745329,0.000114,2]
[421407558,1777576233000,-500.0,0.00011373,2]
[421407562,1777576233000,-500.0,0.00011373,2]
[421407561,1777576233000,-500.0,0.00011373,2]
[421407563,1777576233000,-500.0,0.00011373,2]
[421407588,1777576238000,-3533.0,0.00011836,2]
[421407587,1777576238000,-1049.0,0.00011836,2]
[421407585,1777576238000,-623.0,0.00011836,2]
[421407586,1777576238000,-1350.0,0.00011836,2]
[421407584,1777576238000,-150.0,0.00011836,2]
[421407580,1777576238000,-172.066,0.0001178,2]
[421407583,1777576238000,-332.82187693,0.00011835,2]
[421407581,1777576238000,-2022.4,0.000118,2]
[421407582,1777576238000,-500.0,0.00011835,2]
[421407579,1777576238000,-191.02,0.00011774,2]
[421407574,1777576238000,-2228.0,0.000115,2]
[421407573,1777576238000,-360.0,0.00011433,2]
[421407577,1777576238000,-416.0,0.00011602,2]
[421407578,1777576238000,-1143.30358848,0.0001176,2]
[421407575,1777576238000,-313.0,0.000116,2]
[421407576,1777576238000,-6037.0,0.00011602,2]
[421407572,1777576238000,-255.0,0.00011418,2]
[421407569,1777576238000,-904.1372,0.000114,2]
[421407570,1777576238000,-192462.68088829,0.000114,2]
[421407571,1777576238000,-150.0,0.000114,2]
[421407568,1777576238000,-380.52932165,0.000114,2]
[421407591,1777576238000,-168.16973479,0.000119,2]
[421407593,1777576238000,-3938.0,0.000119,2]
[421407589,1777576238000,-1267.0,0.00011836,2]
[421407592,1777576238000,-5000.0,0.000119,2]
[421407635,1777576238000,-5420.14792206,0.00012,2]
[421407633,1777576238000,-1128.37587025,0.00012,2]
[421407629,1777576238000,-482324.88312235,0.00012,2]
[421407627,1777576238000,-250.0,0.00012,2]
[421407625,1777576238000,-238.0,0.00012,5]
[421407621,1777576238000,-248.0,0.00012,5]
[421407603,1777576238000,-1000.0,0.00011921,2]
[421407618,1777576238000,-155.0,0.00011999,2]
[421407623,1777576238000,-154.0,0.00012,5]
[421407612,1777576238000,-195.42,0.00011977,2]
[421407616,1777576238000,-300.0,0.00011999,2]
[421407610,1777576238000,-15486.0,0.00011973,2]
[421407614,1777576238000,-673.40959019,0.0001199,2]
[421407609,1777576238000,-200.0,0.00011945,2]
[421407611,1777576238000,-229.06,0.00011977,2]
[421407605,1777576238000,-1000.0,0.00011921,2]
[421407606,1777576238000,-1000.0,0.00011921,2]
[421407607,1777576238000,-1000.0,0.00011921,2]
[421407596,1777576238000,-1064.5595423,0.00011917,2]
[421407590,1777576238000,-1220.0,0.00011836,2]
[421407594,1777576238000,-4492.9034248,0.00011913,2]
[421407608,1777576238000,-183.70581575,0.00011921,2]
[421407598,1777576238000,-1000.0,0.00011921,2]
[421407600,1777576238000,-1000.0,0.00011921,2]
[421407604,1777576238000,-1000.0,0.00011921,2]
[421407849,1777576240000,-1075311.18016608,0.00012,2]